Cogmind - Beta 16 @@@ ROGUE MODE // 2025.10.31 @ 19:58:46 Player: Bt-7274 Result: Destroyed by PL-II7AZ9OMWV with Nanosword Performance ------------- Evolutions (7) 3500 Regions Visited (10) 2000 Robots Destroyed (59) 295 Value Destroyed (1717) 1717 Prototype IDs (12) 240 Alien Tech Used (0) 0 Bonus (500) 500 TOTAL SCORE: 8252 Bonus ------- Scanned by Researcher 500 Cogmind --------- Core Integrity 0/1300 Matter 174/300 Energy 138/150 System Corruption 11% Temperature Cool (0) Movement Hovering (60) Location -3/Testing Parts ------- > --- POWER (2) -------- Micro Antimatter Reactor > --- PROPULSION (5) --- Improved Antigrav System > --- UTILITY (12) ----- Advanced Signal Interpreter Advanced Terrain Scan Processor Advanced Target Analyzer Advanced Target Analyzer Advanced System Shield > --- WEAPON (2) ------- (None) > --- INVENTORY (5) ---- Micro Antimatter Reactor Electron Diverter Advanced Remote Datajack Power Maul Lance Peak State ------------ > --- POWER ------------ Light Nuclear Core > --- PROPULSION ------- VTOL Module Nuclear Pulse Array Impulse Thruster Electron Diverter > --- UTILITY ---------- Advanced Power Amplifier Machine Analyzer Long-range Sensor Array Signal Interpreter Advanced Signal Interpreter Improved Terrain Scanner Advanced Terrain Scan Processor Experimental Focal Shield Point Defense System Hacking Suite > --- WEAPON ----------- Quantum Rifle > --- INVENTORY -------- VTOL Module VTOL Module Seismic Detector Linear Accelerator Power Maul [Rating: 90] Favorites ----------- Power Light Nuclear Core Engine Light Ion Engine Power Core Light Nuclear Core Reactor Micro Antimatter Reactor Propulsion VTOL Module Treads Light Treads Leg Aluminum Leg Hover Unit Gravmag System Flight Unit VTOL Module Utility Signal Interpreter Device Seismic Detector Storage Large Storage Unit Processor Signal Interpreter Hackware System Shield Protection Improved Propulsion Shielding Weapon Assault Rifle Energy Gun Backup Laser I Energy Cannon Potential Cannon Ballistic Gun Assault Rifle Launcher Mini Grenade Launcher Special Weapon Advanced Remote Datajack Impact Weapon Heavy Flail Piercing Weapon Lance Build | -11 -10 -9 -9 -8 -7 -6 -5 -4 -3 -3 ------- Run | Yrd Mat Mat Min Mat Fac Fac Fac Fac Res Tes Slots Evolved 14 | . . 2 . 2 2 2 2 2 2 . Power 1 | . . . . . . . 1 . . . Propulsion 3 | . . 1 . . . . 1 . 1 . Utility 10 | . . 1 . 2 2 2 . 2 1 . Weapon . | . . . . . . . . . . . Parts Attached 112 | 9 4 5 3 9 6 22 6 14 17 17 Power 12 | 2 . . 1 . . 3 . 3 1 2 Engine 5 | 2 . . . . . 2 . 1 . . Core 4 | . . . 1 . . 1 . 2 . . Reactor 3 | . . . . . . . . . 1 2 Propulsion 28 | 2 2 1 1 2 1 7 . 5 5 2 Treads 2 | . 1 1 . . . . . . . . Leg 5 | 2 1 . 1 . . 1 . . . . Wheel . | . . . . . . . . . . . Hover 2 | . . . . . 1 . . . . 1 Flight 19 | . . . . 2 . 6 . 5 5 1 Utility 52 | 3 1 2 1 6 4 10 5 3 10 7 Device 28 | 2 . 1 1 2 1 6 1 2 9 3 Storage 4 | 1 1 1 . . . . . . . 1 Processor 13 | . . . . 3 2 2 2 1 1 2 Hackware 5 | . . . . . . 2 2 . . 1 Protection 2 | . . . . 1 1 . . . . . Artifact . | . . . . . . . . . . . Weapon 20 | 2 1 2 . 1 1 2 1 3 1 6 Energy Gun 6 | . . 1 . . 1 . 1 . 1 2 Energy Cannon 1 | . . . . . . . . . . 1 Ballistic Gun 6 | 2 1 . . . . 1 . 2 . . Ballistic Cannon . | . . . . . . . . . . . Launcher 3 | . . 1 . 1 . . . . . 1 Special Weapon 1 | . . . . . . . . . . 1 Impact Weapon 2 | . . . . . . 1 . 1 . . Slashing Weapon . | . . . . . . . . . . . Piercing Weapon 1 | . . . . . . . . . . 1 Special Melee Weapon . | . . . . . . . . . . . Unidentified Prototypes 12 | . . . . 1 . . . . 3 8 Corrupted Parts 1 | . . . . . . 1 . . . . System Corruption 3 | . . . . . . 3 . . . . Parts Lost 64 | . . 5 2 8 . 10 14 1 18 6 Power 8 | . . . 1 1 . 2 2 . 2 . Propulsion 16 | . . . 1 3 . 1 4 . 6 1 Utility 30 | . . 1 . 3 . 6 6 1 9 4 Weapon 10 | . . 4 . 1 . 1 2 . 1 1 Highest Loss Streak 12 | . . 3 4 8 . 4 8 1 12 3 To Critical Strikes 1 | . . 1 . . . . . . . . Average Backups 5 | 2 8 13 12 5 2 4 3 4 3 4 Power . | . 2 2 3 1 . . . . . 1 Propulsion 1 | . 1 3 2 . . . 1 1 1 . Utility 2 | . 2 4 5 2 . 2 2 1 . . Weapon 1 | . 2 3 1 1 1 . . . 1 2 Tool/Special . | . . . . . . . . . . . Unused Backups 16 | . 5 1 1 2 . 1 . 2 3 1 Power 5 | . 1 . 1 1 . . . 1 . 1 Propulsion 2 | . 1 . . . . . . 1 . . Utility 2 | . . 1 . . . 1 . . . . Weapon 6 | . 3 . . 1 . . . . 2 . Tool/Special 1 | . . . . . . . . . 1 . Average Slot Usage (%) 67 | . 99 85 67 65 50 66 62 47 67 33 Engine 4 | . 13 10 . . 7 2 3 . . . Core 1 | . . . 9 5 . 1 . 4 5 . Treads 2 | . . 16 6 . . . . . . . Leg 4 | . 27 5 23 7 . . . . . . Hover 1 | . . . . . 6 3 . . . . Flight 6 | . . . . 12 . 4 18 11 19 2 Device 11 | . 14 21 11 21 12 10 4 6 15 6 Storage 3 | . 14 11 11 1 . . . . . . Processor 17 | . . . . 15 18 29 19 13 17 15 Hackware 2 | . . . . . . 2 6 5 4 4 Protection 2 | . . . . . 2 5 2 . . . Energy Gun 1 | . . 3 . . . . 4 . 2 . Ballistic Gun 4 | . 27 16 . . . 1 . 3 . . Peak Build Rating 90 | 7 8 11 13 16 28 49 50 40 90 69 Average Rating 29 | 5 7 10 11 11 20 35 35 23 65 34 On Entrance 17 | . 7 8 9 12 12 28 36 13 39 30 Avg Prop Armor Cover (%) 10 | . . . 16 14 . . 9 . . 4 Naked Turns . | . . . . . . . . . . . Heaviest Build 50 | 14 50 50 26 7 11 15 16 18 23 16 Greatest Support 46 | 20 20 46 46 16 9 18 24 19 36 12 Greatest Overweight (x) 4 | 1 4 1 1 . 1 1 . 2 1 4 Average Overweight (x) . | . . . . . . . . . . . Largest Inventory Capacity 20 | 8 20 20 15 15 5 5 5 5 5 5 Average Capacity 7 | 7 10 16 15 5 5 5 5 5 5 5 Most Carried 16 | 6 12 16 15 14 3 5 5 5 5 5 Average Carried 6 | 2 8 13 14 4 2 4 3 4 4 4 Final Capacity 20 | 8 20 15 15 5 5 5 5 5 5 5 Final Carried 14 | 6 12 14 14 3 3 5 4 3 5 5 Class Distribution -------------------- 41% | Mutant 19% | Scout 14% | Scavenger-Mutant 7% | Scavenger-Scout 6% | Scavenger-Sprinter 4% | Sprinter 3% | Hacker-Scout Dominant Class ---------------- Mutant | -10/Materials Scavenger-Mutant | -9/Materials Scavenger-Mutant | -9/Mines Scavenger-Scout | -8/Materials Scout | -7/Factory Mutant | -6/Factory Mutant | -5/Factory Scavenger-Sprinter | -4/Factory Scavenger-Sprinter | -3/Research Mutant | -3/Testing Resources | -11 -10 -9 -9 -8 -7 -6 -5 -4 -3 -3 ----------- Run | Yrd Mat Mat Min Mat Fac Fac Fac Fac Res Tes Matter Collected 1929 | 284 306 221 100 . . 247 271 181 81 238 Remotely . | . . . . . . . . . . . Salvage Created 1934 | 106 361 484 170 5 . 241 120 127 . 320 Parts 112 | 8 26 23 8 2 . 12 8 8 . 17 Haulers Intercepted 3 | . 1 1 . . . . . . . 1 Recyclers Shooed 1 | . 1 . . . . . . . . . Parts Field Recycled . | . . . . . . . . . . . Retrieved Matter . | . . . . . . . . . . . Parts Self-Destructed . | . . . . . . . . . . . Prevented . | . . . . . . . . . . . Parts Restored . | . . . . . . . . . . . Kills | -11 -10 -9 -9 -8 -7 -6 -5 -4 -3 -3 ------- Run | Yrd Mat Mat Min Mat Fac Fac Fac Fac Res Tes Combat Hostiles Destroyed 40 | . 7 9 6 3 . 6 1 5 . 3 Melee 6 | . . . . . . 3 . . . 3 Guns 20 | . 7 4 . . . 3 1 5 . . AOE 14 | . . 5 6 3 . . . . . . Classes Destroyed 12 | 2 5 2 . . . 1 2 . . . Worker 2 | . . . . . . . 2 . . . Builder 4 | . . 3 . . . . 1 . . . Tunneler 2 | 2 . . . . . . . . . . Hauler 3 | . 1 1 . . . . . . . 1 Recycler 3 | 1 1 1 . . . . . . . . Operator 2 | . 1 . . . . 1 . . . . Watcher 3 | . 1 1 . . . . . . . 1 Swarmer 14 | . 3 1 . 3 . 2 . 5 . . Grunt 17 | . 4 6 6 . . 1 . . . . Sentry 2 | . . 2 . . . . . . . . Hunter 2 | . . . . . . . 1 . . 1 Programmer 5 | . . . . . . 3 . . . 2 Best Kill Streak 9 | 3 4 9 3 3 . 2 1 5 . 2 Combat Bots Only 5 | . 4 5 3 3 . 2 1 5 . 2 Max Kills in Single Turn 3 | 1 1 3 1 1 . 1 1 1 . 1 Gunslinging . | . . . . . . . . . . . Exploded 2 | . . 2 1 1 . . . . . . Melee 1 | . . . . . . 1 . . . 1 Uniques/NPCs Destroyed . | . . . . . . . . . . . Combat | -11 -10 -9 -9 -8 -7 -6 -5 -4 -3 -3 -------- Run | Yrd Mat Mat Min Mat Fac Fac Fac Fac Res Tes Hostile Shots Fired 729 | . 39 57 6 95 6 99 121 30 176 100 Missed 304 | . 13 17 1 40 3 20 59 11 97 43 Hits 425 | . 26 40 5 55 3 79 62 19 79 57 Melee 4 | . . . . 2 . . . . 1 1 Projectile 421 | . 26 40 5 53 3 79 62 19 78 56 Critical Strikes 21 | . . 1 . 4 . 5 2 . 4 5 Damage Taken 7218 | . 293 532 174 736 47 1255 989 325 1927 940 Core 3192 | . 58 91 49 413 14 594 519 153 723 578 Absorbed by Shields . | . . . . . . . . . . . Redirected to Shielding 106 | . . . . . 10 96 . . . . Core Remaining (%) 65 | 100 76 . 65 24 98 30 48 86 . . Volleys Fired 173 | 9 29 32 6 3 1 23 33 14 18 5 Largest 2 | 2 2 2 1 1 1 2 2 1 1 1 Hottest 94 | 40 40 65 30 33 50 60 60 33 94 65 Shots Fired 255 | 18 58 60 6 3 1 27 45 14 18 5 Gun 238 | 18 58 55 . . 1 27 45 14 18 2 Cannon . | . . . . . . . . . . . Launcher 14 | . . 5 6 3 . . . . . . Special 3 | . . . . . . . . . . 3 Kinetic 144 | 18 58 40 . . . 14 . 14 . . Thermal 71 | . . . . . . 8 45 . 18 . Explosive 14 | . . 5 6 3 . . . . . . Electromagnetic 23 | . . 15 . . 1 5 . . . 2 Robot Hit Streak 14 | 5 6 10 7 2 . 10 14 7 6 5 Robot Miss Streak 4 | 3 3 3 . 1 1 1 4 2 3 3 Penetration Max 1 | . . . . . . . . 1 . . Secondary Targets 2 | . 2 . . . . . . . . . Max Gunslinging Chain 1 | . 1 . . . . . . . . . Shots Hit Robots 192 | 10 35 40 5 2 . 33 32 9 12 14 Core Hits 95 | 4 16 24 9 5 . 10 11 5 3 8 Critical Kills 3 | . 1 . . . . . . 2 . . Critical Parts Destroyed 1 | . . . . . . 1 . . . . Critical Strikes 4 | . 1 . . . . 1 . 2 . . Destroy 3 | . 1 . . . . . . 2 . . Smash 1 | . . . . . . 1 . . . . Melee Attacks 40 | . . . . . . 21 . 2 2 15 Impact 26 | . . . . . . 21 . 2 2 1 Slashing . | . . . . . . . . . . . Piercing 14 | . . . . . . . . . . 14 Sneak Attacks 1 | . . . . . . . . . . 1 Combat Hostiles . | . . . . . . . . . . . Follow-up Attacks . | . . . . . . . . . . . Damage Inflicted 4690 | 105 488 1185 325 258 . 837 329 235 349 579 Guns 2331 | 105 488 550 . . . 236 304 235 349 64 Cannons . | . . . . . . . . . . . Explosions 1209 | . . 626 325 258 . . . . . . Melee 1108 | . . . . . . 597 . . . 511 Ramming 42 | . . 9 . . . 4 25 . . 4 Kinetic 1272 | 105 488 304 . . . 140 . 235 . . Thermal 797 | . . 65 . . . 79 304 . 349 . Explosive 1144 | . . 561 325 258 . . . . . . Electromagnetic 327 | . . 246 . . . 17 . . . 64 Impact 597 | . . . . . . 597 . . . . Slashing . | . . . . . . . . . . . Piercing 511 | . . . . . . . . . . 511 Highest Corruption 13 | . . . . 2 . 13 1 . 7 11 Average Corruption 7 | . . . . 2 . 7 1 . 4 8 Corruption Purged . | . . . . . . . . . . . Corruption Blocked 2 | . . . . . . 2 . . . . Effects 44 | . . . . . . 29 . . 4 11 Message Errors 15 | . . . . . . 10 . . 1 4 Matter Fused 9 | . . . . . . 5 . . 2 2 Heat Flow Errors 8 | . . . . . . 7 . . . 1 Energy Discharges 3 | . . . . . . 2 . . 1 . Data Loss (minor) 6 | . . . . . . 3 . . . 3 Data Loss (major) 2 | . . . . . . 1 . . . 1 Misdirections 1 | . . . . . . 1 . . . . Overload Shots . | . . . . . . . . . . . Overflow Damage 249 | . . 7 24 58 . 160 . . . . Projectiles . | . . . . . . . . . . . Explosions 89 | . . 7 24 58 . . . . . . Melee 160 | . . . . . . 160 . . . . Knockbacks 3 | . . . . . . 3 . . . . Impact 3 | . . . . . . 3 . . . . Kinetic . | . . . . . . . . . . . Secondary . | . . . . . . . . . . . Self-Inflicted Damage 273 | . . 48 117 95 . 1 10 . . 2 Shots 8 | . . 2 3 3 . . . . . . Rammed 14 | . . 2 . . . 2 9 . . 1 Targets Rammed 14 | . . 2 . . . 2 9 . . 1 Kicked . | . . . . . . . . . . . Crushed . | . . . . . . . . . . . Highest Temperature 408 | . 13 65 6 2 . 259 2 . 322 408 Average Temperature 98 | . 7 24 4 2 . 104 2 . 135 180 Received Heat Transfer 834 | . 150 153 33 189 18 99 63 . 129 . Effects 1 | . . . . . . . . . 1 . Interference 1 | . . . . . . . . . 1 . Siege Activations . | . . . . . . . . . . . Martial Activations . | . . . . . . . . . . . Shielding Activations . | . . . . . . . . . . . Robots Disrupted . | . . . . . . . . . . . Combat Hostiles . | . . . . . . . . . . . Robots Corrupted . | . . . . . . . . . . . Combat Hostiles . | . . . . . . . . . . . Parts Fried . | . . . . . . . . . . . Impact Corruptions 8 | . . . . . . 8 . . . . Robots Melted . | . . . . . . . . . . . Combat Hostiles . | . . . . . . . . . . . Parts Melted 5 | . . . . . . 2 3 . . . Heat Transferred 2011 | . . 50 . . . 259 1258 . 444 . Parts Sabotaged . | . . . . . . . . . . . Parts Stolen . | . . . . . . . . . . . Parts Stripped . | . . . . . . . . . . . Power Chain Reactions 1 | . . 1 . . . . . . . . Alert | -11 -10 -9 -9 -8 -7 -6 -5 -4 -3 -3 ------- Run | Yrd Mat Mat Min Mat Fac Fac Fac Fac Res Tes Maximum Alert Level 1 | . . . 1 . . . . . . . Low Security (%) 99 | 100 100 100 86 100 100 100 100 100 100 100 Level 1 . | . . . 13 . . . . . . . Level 2 . | . . . . . . . . . . . Level 3 . | . . . . . . . . . . . Level 4 . | . . . . . . . . . . . Level 5 . | . . . . . . . . . . . High Security . | . . . . . . . . . . . Max Security . | . . . . . . . . . . . Peak Influence 227 | 10 145 196 227 91 34 98 131 125 198 113 Initial 98 | . . 8 73 29 34 . 16 63 54 98 Average 35 | 1 54 16 153 37 4 21 14 86 60 19 Influence Increases 2145 | 15 194 340 214 176 . 257 240 140 458 111 Destroy 0b10 Robot/C 800 | . 140 180 120 60 . 120 20 100 . 60 Destroy 0b10 Robot/NC 95 | 15 20 30 . . . 5 15 . . 10 Destroy Leader 192 | . 34 54 20 10 . 40 10 10 . 14 Successful Hack 71 | . . 14 . . . . . 24 21 12 Disable Machine 75 | . . 15 30 . . 15 . . . 15 Destroy Structure 102 | . . 32 44 16 . 2 . 6 2 . Partial Spotted 90 | . . . . . . 15 15 . 60 . Lose Combat Pursuer 720 | . . 15 . 90 . 60 180 . 375 . Influence Decreases 2145 | 15 174 172 325 177 76 224 142 168 386 286 Entered New Map 428 | . . 12 115 48 42 . 17 68 49 77 Time Decay 1245 | 15 174 126 190 49 34 174 95 90 204 94 Lost Part 379 | . . 34 20 80 . 50 30 10 133 22 Purge Threat 93 | . . . . . . . . . . 93 Squads Dispatched 22 | . 2 1 1 7 2 4 . . 3 2 Investigation 5 | . 1 1 1 2 . . . . . . Extermination 8 | . . . . . 1 3 . . 3 1 Reinforcement 6 | . 1 . . 2 1 1 . . . 1 Assault 2 | . . . . 2 . . . . . . Garrison 1 | . . . . 1 . . . . . . Intercept . | . . . . . . . . . . . Searches Triggered . | . . . . . . . . . . . Construction Impeded . | . . . . . . . . . . . Haulers Reinforced . | . . . . . . . . . . . Active Scanning Responses . | . . . . . . . . . . . Cargo Convoy Interrupts . | . . . . . . . . . . . Stealth | -11 -10 -9 -9 -8 -7 -6 -5 -4 -3 -3 --------- Run | Yrd Mat Mat Min Mat Fac Fac Fac Fac Res Tes Distress Signals 6 | . . 2 . 1 . . 2 . 1 . Communications Jammed . | . . . . . . . . . . . Distress Signals . | . . . . . . . . . . . Times Spotted 157 | . 9 12 4 33 7 15 21 7 41 8 Peak Tracking Total 22 | . 4 6 2 22 5 5 12 5 15 3 Tactical Retreats 20 | . . 1 . 3 . 3 4 . 9 . Traps | -11 -10 -9 -9 -8 -7 -6 -5 -4 -3 -3 ------- Run | Yrd Mat Mat Min Mat Fac Fac Fac Fac Res Tes Traps Triggered 9 | . 1 2 . 1 . 3 . 1 1 . Indirectly . | . . . . . . . . . . . Trap Hack Attempts . | . . . . . . . . . . . Triggered . | . . . . . . . . . . . Disarmed . | . . . . . . . . . . . Reprogrammed . | . . . . . . . . . . . Reused . | . . . . . . . . . . . Traps Extracted . | . . . . . . . . . . . Installed . | . . . . . . . . . . . Triggered . | . . . . . . . . . . . Most Traps Carried 2 | . . . 2 2 . . . . . . Machines | -11 -10 -9 -9 -8 -7 -6 -5 -4 -3 -3 ---------- Run | Yrd Mat Mat Min Mat Fac Fac Fac Fac Res Tes Machines Disabled 6 | . . 2 2 . . 1 . . . 1 Max in Single Turn 1 | . . 1 1 . . 1 . . . 1 Garrison Access 4 | . . . . 1 . . . 1 1 1 Machines Repaired . | . . . . . . . . . . . Machines Dismantled . | . . . . . . . . . . . Machines Sabotaged . | . . . . . . . . . . . Overloaded Fab Kills . | . . . . . . . . . . . Hacking | -11 -10 -9 -9 -8 -7 -6 -5 -4 -3 -3 --------- Run | Yrd Mat Mat Min Mat Fac Fac Fac Fac Res Tes Machines Accessed 31 | . 2 2 1 3 . 5 3 4 6 5 Terminals 17 | . 2 2 1 2 . 2 2 2 3 1 Fabricators 3 | . . . . . . 1 . . . 2 Repair Stations 2 | . . . . . . 1 1 . . . Recycling Units 3 | . . . . . . 1 . 1 1 . Scanalyzers 2 | . . . . 1 . . . . . 1 Garrison Access 4 | . . . . . . . . 1 2 1 Total Hacks 59 | . 4 7 4 8 . 6 3 6 10 11 Successful 23 | . . 2 1 3 . 2 1 4 3 7 Failed 35 | . 4 5 3 4 . 4 2 2 7 4 Catastrophic 9 | . 2 1 1 1 . 3 . . 1 . Database Lockouts 1 | . . . . 1 . . . . . . Manual 12 | . 1 1 3 3 . 2 . . 2 . Terminals 35 | . 4 7 4 6 . 2 2 3 5 2 Fabricators 3 | . . . . . . 1 . . . 2 Repair Stations 2 | . . . . . . 1 1 . . . Recycling Units 4 | . . . . . . 2 . 1 1 . Scanalyzers 7 | . . . . 2 . . . . . 5 Garrison Access 8 | . . . . . . . . 2 4 2 Terminal Hacks 11 | . . 2 1 2 . . . 2 2 2 Record 1 | . . . . . . . . . 1 . Alert Level 2 | . . . . 1 . . . 1 . . Unreport Threat 1 | . . . . . . . . . . 1 Locate Traps 1 | . . . . . . . . . . 1 Security Status 1 | . . 1 . . . . . . . . Registered Prototypes 1 | . . . . . . . . 1 . . Zone Layout 4 | . . 1 1 1 . . . . 1 . Fabricator Hacks 1 | . . . . . . 1 . . . . Build 1 | . . . . . . 1 . . . . Repair Station Hacks 2 | . . . . . . 1 1 . . . Refit 2 | . . . . . . 1 1 . . . Recycling Unit Hacks 1 | . . . . . . . . 1 . . Report Inventory 1 | . . . . . . . . 1 . . Scanalyzer 5 | . . . . 1 . . . . . 4 Insert Component 1 | . . . . . . . . . . 1 Retrieve Study 4 | . . . . 1 . . . . . 3 Garrison Access Hacks 3 | . . . . . . . . 1 1 1 Seal Access 3 | . . . . . . . . 1 1 1 Unauthorized Hacks . | . . . . . . . . . . . Terminals . | . . . . . . . . . . . Fabricators . | . . . . . . . . . . . Repair Stations . | . . . . . . . . . . . Recycling Units . | . . . . . . . . . . . Scanalyzers . | . . . . . . . . . . . Garrison Access . | . . . . . . . . . . . Data Cores Recovered . | . . . . . . . . . . . Used . | . . . . . . . . . . . Hacking Detections 29 | . 2 2 1 3 . 5 2 4 6 4 Full Trace Events 4 | . 1 1 1 1 . . . . . . Feedback Events . | . . . . . . . . . . . Feedback Blocked . | . . . . . . . . . . . Robot Schematics Acquired . | . . . . . . . . . . . Robots Built . | . . . . . . . . . . . Authchips . | . . . . . . . . . . . Time . | . . . . . . . . . . . Total Robot Build Rating . | . . . . . . . . . . . Part Schematics Acquired . | . . . . . . . . . . . Parts Built 1 | . . . . . . 1 . . . . Authchips . | . . . . . . . . . . . Time 95 | . . . . . . 95 . . . . Total Part Build Rating 5 | . . . . . . 5 . . . . Part Studies Acquired 4 | . . . . 1 . . . . . 3 Parts Repaired . | . . . . . . . . . . . Time . | . . . . . . . . . . . Parts Recycled . | . . . . . . . . . . . Recycled Matter . | . . . . . . . . . . . Retrieved Matter . | . . . . . . . . . . . Retrieved Components . | . . . . . . . . . . . Parts Scanalyzed 1 | . . . . . . . . . . 1 Part Schematics Acquired . | . . . . . . . . . . . Parts Damaged 1 | . . . . . . . . . . 1 Bothacking | -11 -10 -9 -9 -8 -7 -6 -5 -4 -3 -3 ------------ Run | Yrd Mat Mat Min Mat Fac Fac Fac Fac Res Tes Used RIF Installer . | . . . . . . . . . . . Robots Hacked . | . . . . . . . . . . . Non-combat . | . . . . . . . . . . . Combat . | . . . . . . . . . . . Robot Hacks Applied . | . . . . . . . . . . . Relay Couplers Released 2 | . . . . 1 . . . . . 1 Machine Destruction 2 | . . . . 1 . . . . . 1 Fabnet Peak Effective % . | . . . . . . . . . . . Robots Rewired . | . . . . . . . . . . . Allies Hacked . | . . . . . . . . . . . Hacks Repelled . | . . . . . . . . . . . Allies | -11 -10 -9 -9 -8 -7 -6 -5 -4 -3 -3 -------- Run | Yrd Mat Mat Min Mat Fac Fac Fac Fac Res Tes Total Allies . | . . . . . . . . . . . Largest Group . | . . . . . . . . . . . Highest-Rated Group . | . . . . . . . . . . . Highest-Rated Ally . | . . . . . . . . . . . Total Orders . | . . . . . . . . . . . Ally Attacks . | . . . . . . . . . . . Total Damage . | . . . . . . . . . . . Kills . | . . . . . . . . . . . Allies Corrupted . | . . . . . . . . . . . Allies Melted . | . . . . . . . . . . . Intel | -11 -10 -9 -9 -8 -7 -6 -5 -4 -3 -3 ------- Run | Yrd Mat Mat Min Mat Fac Fac Fac Fac Res Tes Active Infowar (turns) 5269 | 32 478 616 24 117 360 2105 528 193 522 294 Optics 2972 | . . . . 111 360 2096 405 . . . Sensors 2413 | . . . 24 108 360 1804 . . 117 . IFF 449 | . . . . . . 41 408 . . . Terrain 567 | . . . . . . 436 . . 131 . Structural 78 | . . . . 78 . . . . . . Seismic 2354 | 32 478 616 . . . 367 69 193 305 294 T.N.C. 3 | . . . . 3 . . . . . . Machine Analysis 1136 | . . . . . . . 455 193 488 . Jamming 1 | . . . . . . . . . 1 . ECM 592 | . . . . . 261 331 . . . . Robot Analysis Total . | . . . . . . . . . . . Derelict Logs Recovered 1 | . . . 1 . . . . . . . Drone Launches 2 | . . . . . . . . . . 2 Drone Recoveries 1 | . . . . . . . . . . 1 Exploration | -11 -10 -9 -9 -8 -7 -6 -5 -4 -3 -3 ------------- Run | Yrd Mat Mat Min Mat Fac Fac Fac Fac Res Tes Turns Passed 5975 | 132 478 639 392 117 360 2115 585 193 559 405 Spaces Moved 6173 | 78 237 232 281 188 443 1505 933 337 1460 479 Core 438 | 9 . . . 63 22 72 70 16 . 186 Treads 239 | . 2 181 56 . . . . . . . Legs 619 | 69 235 51 225 . . 39 . . . . Wheels . | . . . . . . . . . . . Hover 1139 | . . . . . 421 670 . . . 48 Flight 3738 | . . . . 125 . 724 863 321 1460 245 Fastest Speed 24 | 50 120 160 120 47 60 30 31 26 24 35 Average Speed 56 | 115 141 173 129 48 64 53 35 37 27 52 Slowest Speed 400 | 120 400 240 190 50 120 120 50 195 95 250 Overloaded Moves . | . . . . . . . . . . . Propulsion Burnouts . | . . . . . . . . . . . Robots Hopped 64 | . . . . 3 . 10 8 4 34 5 Potential Cave-ins 3 | . . . . . . 3 . . . . Cave-ins Triggered . | . . . . . . . . . . . Exploration Rate (%) 26 | 5 35 19 55 28 11 24 18 8 40 53 Regions Visited 10 Branch Regions 2 Pre-discovered Areas . | . . . . . . . . . . . Known Exits Taken 6 | . . . . 1 1 1 1 1 1 . Unknown Exits Taken 4 | 1 1 1 1 . . . . . . . Scrap Searched 1 | . . . 1 . . . . . . . Spaces Dug 9 | . . . . . . 5 . 2 2 . Terrain Destroyed 111 | . . 36 49 16 . 5 . 3 2 . Melee 9 | . . . . . . 5 . 2 2 . Projectile 1 | . . . . . . . . 1 . . AOE 101 | . . 36 49 16 . . . . . . Terrain Rammed . | . . . . . . . . . . . Walls Destroyed . | . . . . . . . . . . . Machines Disabled . | . . . . . . . . . . . Actions | -11 -10 -9 -9 -8 -7 -6 -5 -4 -3 -3 --------- Run | Yrd Mat Mat Min Mat Fac Fac Fac Fac Res Tes Total 8273 | 99 327 407 303 212 514 2740 1130 381 1558 602 Wait 1616 | . 32 111 5 1 58 1122 153 4 69 61 Move 6045 | 77 236 231 280 181 442 1484 918 328 1399 469 Hop 55 | . . . . 3 . 10 7 4 26 5 Pick Up 57 | 4 10 17 3 2 1 3 3 4 9 1 Fast Attach 85 | 7 6 6 2 1 5 16 4 8 14 16 Attach 46 | . . 4 3 7 4 7 4 6 4 7 Detach 29 | . 1 1 1 2 3 9 . 2 2 8 Swap 24 | 2 3 1 1 2 . 6 . 3 4 2 Drop 62 | . 10 2 2 10 . 11 . 6 11 10 Fire 173 | 9 29 32 6 3 1 23 33 14 18 5 Melee 40 | . . . . . . 21 . 2 2 15 Ram 11 | . . . . . . 2 8 . . 1 Kick . | . . . . . . . . . . . Crush 2 | . . 2 . . . . . . . . Escape Stasis 28 | . . . . . . 26 . . . 2 Rewire . | . . . . . . . . . . . Trap . | . . . . . . . . . . . Miscellaneous . | . . . . . . . . . . . Route ------- -11/Scrapyard -10/Materials -9/Materials -9/Mines (discovered 2 exits: *Mat x2) -8/Materials -7/Factory -6/Factory -5/Factory -4/Factory -3/Research -3/Testing History --------- Turn | Location | Event 12 | -11/Scrapyard | Discovered new exit (range 16) 133 | -11/Scrapyard | Entered Materials 312 | -10/Materials | Build established: Mutant 420 | -10/Materials | Discovered new exit (range 7) 611 | -10/Materials | Entered another Materials area 611 | -9/Materials | Evolved 2 slots: Propulsion x1, Utility x1 1047 | -9/Materials | Build established: Scavenger-Mutant 1199 | -9/Materials | Discovered new exit (range 16) 1250 | -9/Materials | Entered Mines 1281 | -9/Mines | Lost 4 parts (1p1u2w) 1303 | -9/Mines | Found a hidden stash of uninstalled traps 1413 | -9/Mines | Found a damaged Exp. Sensor Array with a note attached 1415 | -9/Mines | Found Prototype Device 1506 | -9/Mines | Discovered new exit (range 15) 1526 | -9/Mines | Discovered new exit (range 9) 1642 | -9/Mines | Entered Materials 1642 | -8/Materials | Evolved 2 slots: Utility x2 1669 | -8/Materials | Garrison activated, responded to threat 1695 | -8/Materials | Central database locked down 1747 | -8/Materials | Core integrity fell below 50% 1748 | -8/Materials | Identified Exp. Sensor Array 1752 | -8/Materials | Discovered new exit (range 14) 1759 | -8/Materials | Identified exit to Factory 1759 | -8/Materials | Entered Factory 1759 | -7/Factory | Evolved 2 slots: Utility x2 1770 | -7/Factory | Lost 8 parts (1p3n3u1w) 2078 | -7/Factory | Discovered new exit (range 18) 2118 | -7/Factory | Identified exit to Factory 2119 | -7/Factory | Entered another Factory area 2119 | -6/Factory | Evolved 2 slots: Utility x2 2397 | -6/Factory | Build established: Scout 3018 | -6/Factory | Build established: Mutant 3375 | -6/Factory | Lost 4 parts (1p1n2u) 3500 | -6/Factory | Core integrity fell below 50% 3785 | -6/Factory | Fabricated Imp. Hacking Suite? 3848 | -6/Factory | Build established: Scavenger-Scout 4182 | -6/Factory | System corruption reached 10% 4198 | -6/Factory | Lost 3 parts (3u) 4202 | -6/Factory | Discovered new exit (range 22) 4233 | -6/Factory | Identified exit to Factory 4234 | -6/Factory | Entered another Factory area 4234 | -5/Factory | Evolved 2 slots: Power x1, Propulsion x1 4683 | -5/Factory | Lost 8 parts (1p2n3u2w) 4813 | -5/Factory | Discovered new exit (range 9) 4817 | -5/Factory | Identified exit to Factory 4818 | -5/Factory | Core integrity fell below 50% 4819 | -5/Factory | Entered another Factory area 4819 | -4/Factory | Evolved 2 slots: Utility x2 5008 | -4/Factory | Spotted B-86 Titan 5011 | -4/Factory | Discovered new exit (range 5) 5012 | -4/Factory | Identified exit to Research 5012 | -4/Factory | Entered Research 5012 | -3/Research | Evolved 2 slots: Propulsion x1, Utility x1 5212 | -3/Research | Build established: Scavenger-Sprinter 5293 | -3/Research | Lost 3 parts (1p2u) 5361 | -3/Research | Found Prototype Device 5361 | -3/Research | Identified Exp. Focal Shield 5450 | -3/Research | Spotted B-86 Titan 5491 | -3/Research | Spotted B-86 Titan 5551 | -3/Research | Core integrity fell below 50% 5565 | -3/Research | Discovered new exit (range 16) 5570 | -3/Research | Identified exit to Testing 5571 | -3/Research | Entered Testing 5581 | -3/Testing | Lost 12 parts (1p4n6u1w) 5586 | -3/Testing | Found Prototype Energy Cannon 5586 | -3/Testing | Identified Potential Cannon 5797 | -3/Testing | Build established: Mutant 5808 | -3/Testing | Scanned by Researcher 5848 | -3/Testing | System corruption reached 10% 5865 | -3/Testing | Spotted PL-II7AZ9OMWV 5879 | -3/Testing | Found Gamma Bomb Array 5880 | -3/Testing | Core integrity fell below 20% 5913 | -3/Testing | Lost 3 parts (3u) 5976 | -3/Testing | Destroyed by PL-II7AZ9OMWV with Nanosword Last Messages --------------- 05920_ K-01 Serf collects debris. 05922_ Acquired Prototype Reactor. 05922_ Identified Cld. Antimatter Reactor. 05923_ Dropped Cld. Antimatter Reactor. 05924_ K-01 Serf collects debris. 05924_ U-05 Engineer builds a Door. 05925_ Acquired Mic. Antimatter Reactor+. 05928_ K-01 Serf collects debris. 05929_ Acquired Imp. Antigrav System. 05930_ System corrupted: Component data lost. 05936_ Acquired Prototype Energy Gun. 05936_ Identified Hvy. Gatling Laser. 05936_ Faulty integration triggers heat surge (+441). 05938_ Dropped Faulty Hvy. Gatling Laser. 05951_ Acquired Adv. Remote Datajack. 05966_ PL-II7AZ9OMWV springs to life. 05976_ Cld. Field Propulsion Drive destroyed. 05976_ Tesla Rifle destroyed. 05976_ Signal Interpreter destroyed. Map ----- +----------------------------------------------------+ | ????????????????# # """ #??????????????? | | ????????????????# # ""T"" #??????????????? | | ????????????????# # "" "" #??????????????? | | ##+####?????????# # #??????????????? | | ######????# + #??????????????? | | % ###### # """ #??????????????? | | ! / # """ #??????????????? | | !!= ###### # """ = #??????????????? | | %! %! #????# ] # #??????????????? | | !!! $#?########+######+###########?????????? | | $%$| #?????????? | | =$! #?????????? | | !! """ "" #?????????? | | !! """ !G" #?????????? | | +################## ! """ " ####?????????? | | ???????# ] ! ## #????????????? | | ???????#[ ! ! ]## """ """ """ #????????????? | | ???????# !!! # """ """ """ #????????????? | | ???????#! *! ! # [ """ """ """ #????????????? | | ???????#####+##### #????????????? | | ???????????# * [ = #????????????? | | ??????????#########+#################????????????? | | ??????????# #???????????????????? | | ??????????# #???????????????????? | | ??????????# "" """ l #???????????????????? | | ??????????# "" "" @ #???????????????????? | | ??????????# """ """" #???????????????????? | | ??????????# """"""" #???????????????????? | | ??????????# #???????????????????? | | ??????????# #???????????????????? | | ??????????####################???????????????????? | | | | | | | | | | | | | | | | | | | | | | | | | | | | | | | | | | | | | | | +----------------------------------------------------+ Best States ------------- Heat Dissipation 46 Energy Generation 23 Energy Capacity 600 Matter Stores 300 Matter Capacity 300 Sight Range 22 Robot Scan Range 20 Terrain Scan Range 16 Terrain Scan Density 210 ECM Strength 1 Power Amplification 30 Additional Mass Support 6 Corruption Block 2 Armor Coverage 150 Resistance: KI 30 Propulsion Shielding 66 Point Defense Rating 80 Evasion (%) 77 Target Analysis 12 Recoil Reduction 2 Offensive Hacking 12 Defensive Hacking 20 Item Schematics ----------------- None Robot Schematics ------------------ None Fabricated ------------ Imp. Hacking Suite | x1 | -6/Factory | Preloaded Repaired ---------- Nothing Studied --------- Flight Unit | -8/Materials | Hacked Mic. Antimatter Reactor | -3/Testing | Hacked Lance | -3/Testing | Hacked Power Maul | -3/Testing | Hacked Alien Tech Used ----------------- None Achievements -------------- A Problem For Future Me Dodgeball, But With Guns Fitting Room Challenges ------------ None Game ------ Seed DataMultitargetingSpecial Manual? 0 Play Time 01:21:12 Cumulative 52.7 hours Start 2025.10.30 @ 13:00:17 End 2025.10.31 @ 19:58:46 Sessions 4 Manual Loads 0 Difficulty Rogue Special Mode None Game No. 65 Rogue 65 Adventurer 0 Explorer 0 Win Type - Total 0 Types 0/0/0/0/0/0/0/0/0/0 Lore% 25 Gallery% 43 Achievement% 25 Wizard Run 0 Options --------- Layout 1 ASCII 0 Keyboard 0 Movement Numpad Keybinds 0 Fullscreen 1 Font 32/SmallcapsGlow Map View 50x35 Zoom Use 0% Tactical HUD 1 Map Filters NONE Filters NONE Steam 1 RUN: bc94a460-2369-4338-98cb-53b639b94832